bitfinex/quotes_ETHUSD_20241106
["timestamp","ask_amount","ask_price","bid_price","bid_amount"]
[1730916853187,0.7836,2666.6,2666.2,3.7506]
[1730916853394,0.7836,2666.6,2666.1,3.75079]
[1730916853606,4.53371,2666.6,2666.1,3.75079]
[1730916854512,4.53371,2666.6,2666.1,3.75071]
[1730916856093,0.7836,2666.6,2666.3,3.75038]
[1730916856404,0.7836,2666.6,2665.9,0.77443696]
[1730916856563,3.7503,2666.5,2665.9,3.75107]
[1730916856765,3.7503,2666.5,2665.8,1.56483696]
[1730916857104,3.75051,2666.3,2665.8,4.10656361]
[1730916857706,3.75039,2666.4,2665.8,4.10656361]
[1730916857890,0.7836,2666.6,2666.0,3.75093]
[1730916858089,0.7836,2666.6,2665.8,0.35542361]
[1730916858090,3.75031,2666.5,2665.9,3.75107]
[1730916858872,0.7836,2666.6,2666.1,3.75078]
[1730916859311,4.53375,2666.6,2666.1,3.75078]
[1730916859870,3.75023,2666.5,2666.0,3.75092]
[1730916860284,3.75023,2666.5,2666.0,4.48844531]
[1730916861410,3.7504,2666.4,2666.0,0.73752531]
[1730916861609,3.7504,2666.4,2665.9,3.75107]
[1730916861809,3.75072,2666.2,2665.6,3.75138]
[1730916862367,3.75072,2666.2,2665.7,3.75129]
[1730916863319,3.75072,2666.2,2665.6,3.75138]
[1730916863705,7.50148,2666.2,2665.6,3.75138]
[1730916864320,3.75072,2666.2,2665.7,3.75135]
[1730916865289,3.75072,2666.2,2665.6,3.75138]
[1730916865495,3.75084,2666.1,2665.6,3.75138]
[1730916866781,3.75095,2666.0,2665.5,4.52605696]
[1730916867120,3.75095,2666.0,2665.6,0.96909096]
[1730916867278,3.7508,2666.1,2665.5,0.77443696]
[1730916867478,3.7508,2666.1,2665.6,4.72043667]
[1730916867717,3.7508,2666.1,2665.7,0.96895667]
[1730916867901,3.7508,2666.1,2665.6,4.52591696]
[1730916868092,3.7508,2666.1,2665.6,3.75148]
[1730916869080,3.7508,2666.1,2665.7,0.97007163]
[1730916869081,7.50169,2666.1,2665.7,0.97007163]
[1730916869284,7.50169,2666.1,2665.6,0.78211872]
[1730916869593,7.50169,2666.1,2665.7,0.97002804]
[1730916869787,3.7508,2666.1,2665.6,0.78211872]
[1730916869986,3.7508,2666.1,2665.7,0.97018461]
[1730916870215,3.7508,2666.1,2665.8,0.97010087]
[1730916870388,3.7508,2666.1,2665.6,4.53352872]
[1730916870588,3.7508,2666.1,2665.7,0.97025908]
[1730916870789,3.7508,2666.1,2665.6,4.53352872]
[1730916871007,3.7508,2666.1,2665.7,0.97024901]
[1730916871332,4.5684,2666.3,2665.6,4.53352872]
[1730916871333,3.75072,2666.2,2665.6,4.53352872]
[1730916871502,3.75072,2666.2,2665.7,0.97013747]
[1730916871827,3.75072,2666.2,2665.6,4.53352872]
[1730916871983,3.75072,2666.2,2665.7,0.97008683]
[1730916872180,0.8178,2666.3,2665.8,1.72642263]
[1730916872435,0.8053,2666.6,2666.1,3.75072]
[1730916872929,3.7594,2667.1,2665.9,2.46604795]
[1730916872930,4.51859,2666.1,2665.9,0.78211872]
[1730916873082,3.751,2666.0,2665.6,0.78211872]
[1730916873423,3.751,2666.0,2665.5,3.75162]
[1730916873608,7.50204,2666.0,2665.6,0.97013542]
[1730916873813,3.751,2666.0,2665.4,4.53388872]
[1730916874011,3.751,2666.0,2665.5,0.97013376]
[1730916874338,3.751,2666.0,2665.6,0.97013376]
[1730916874629,3.751,2666.0,2665.5,3.75163]
[1730916874830,3.751,2666.0,2665.6,0.96995005]
[1730916875129,3.751,2666.0,2665.4,5.91602591]
[1730916875292,3.751,2666.0,2665.5,0.96994502]
[1730916875630,3.751,2666.0,2665.6,0.9698589]
[1730916875800,3.751,2666.0,2665.5,3.75163]
[1730916876331,3.751,2666.0,2665.4,2.16425591]
[1730916876332,3.751,2666.0,2665.4,5.91596591]
[1730916876635,3.751,2666.0,2665.5,0.96965911]
[1730916876933,3.751,2666.0,2665.6,0.96963211]
[1730916877104,3.751,2666.0,2665.4,9.66762591]
[1730916877105,3.751,2666.0,2665.5,4.53374872]
[1730916877302,3.751,2666.0,2665.6,0.96955398]
[1730916877517,3.751,2666.0,2665.5,3.75163]
[1730916878033,3.75115,2665.9,2665.3,5.30611872]
[1730916878236,3.75115,2665.9,2665.4,1.75181901]
[1730916878531,3.75115,2665.9,2665.5,0.96970029]
[1730916878731,3.75115,2665.9,2665.4,0.78211872]
[1730916879027,7.50232,2665.9,2665.5,0.96962283]
[1730916879239,3.75115,2665.9,2665.4,0.78211872]
[1730916879404,3.75115,2665.9,2665.5,0.96954928]
[1730916879608,3.75115,2665.9,2665.4,0.78211872]
[1730916879792,3.75115,2665.9,2665.5,0.71952994]
[1730916879991,3.75115,2665.9,2665.4,4.53388872]
[1730916880401,4.94007227,2666.0,2665.5,3.75161]
[1730916881694,3.75108,2665.9,2665.3,5.30601872]
[1730916881896,3.75108,2665.9,2665.4,3.75176]
[1730916882511,4.69697123,2665.9,2665.4,3.75176]
[1730916883856,0.94589123,2665.9,2665.4,3.7517]
[1730916884042,0.94589123,2665.9,2665.5,3.75162]
[1730916884249,4.94007227,2666.0,2665.5,3.75162]
[1730916884958,0.7678,2666.1,2665.5,3.75154]
[1730916885253,0.7678,2666.1,2665.7,3.75129]
[1730916885458,0.7678,2666.1,2665.6,3.75148]
[1730916886243,0.7678,2666.1,2665.7,3.75127]
[1730916887767,0.7678,2666.1,2665.7,3.75125]
[1730916887933,0.7678,2666.1,2665.8,3.75121]
[1730916888262,3.75031,2666.5,2665.9,3.75097]
[1730916888782,0.7521,2666.6,2666.0,3.75087]
[1730916888977,0.7521,2666.6,2666.1,3.75069]
[1730916889619,4.50226,2666.6,2666.0,3.75092]
[1730916889863,3.75023,2666.5,2666.0,3.75092]
[1730916890357,7.50054,2666.5,2665.9,3.75106]
[1730916890576,3.75023,2666.5,2665.9,3.75106]
[1730916890917,3.75023,2666.5,2666.0,3.75092]
[1730916891323,4.50221,2666.6,2666.0,3.75084]
[1730916891524,3.75024,2666.5,2665.9,3.75107]
[1730916891724,7.50059,2666.5,2665.9,4.65833987]
[1730916891947,3.75024,2666.5,2666.0,3.75091]
[1730916892668,4.50219,2666.6,2666.0,3.75084]
[1730916892964,4.50219,2666.6,2666.0,7.5017]
[1730916893149,4.50219,2666.6,2666.0,3.75084]
[1730916893465,3.75031,2666.5,2665.9,0.90726987]
[1730916893764,3.75031,2666.5,2665.9,4.65826987]
[1730916894064,3.75038,2666.4,2665.8,3.75108]
[1730916894371,0.7521,2666.6,2665.8,3.75107]
[1730916894372,0.8309,2666.3,2665.8,3.75107]
[1730916894573,0.8309,2666.3,2665.9,3.75099]
[1730916895064,0.8309,2666.3,2666.0,3.7509]
[1730916895272,3.8,2667.2,2666.2,3.75065]
[1730916895473,3.8,2667.2,2666.2,0.78211872]
[1730916895474,7.49892,2667.1,2666.2,0.78211872]
[1730916895774,4.58052,2667.0,2666.4,3.75028]
[1730916896640,0.8309,2667.0,2666.5,3.75021]
[1730916896937,0.458029,2666.9,2666.5,3.75021]
[1730916898168,0.8309,2667.0,2666.5,3.75021]
[1730916898525,4.58044,2667.0,2666.3,3.75038]
[1730916898726,0.8309,2667.0,2666.1,1.59411235]
[1730916898927,0.8309,2667.0,2666.5,3.75015]
[1730916900133,4.58047,2667.0,2666.3,7.50082]
[1730916900350,2.043886,2667.0,2666.3,3.7504]
[1730916900557,0.8309,2667.0,2666.5,3.75023]
[1730916900767,4.58055,2667.0,2666.3,3.7504]
[1730916900927,4.58056,2667.0,2666.3,3.7504]
[1730916901136,3.74974,2666.9,2666.3,3.75045]
[1730916901336,3.74995,2666.7,2666.1,3.75071]
[1730916901584,3.74995,2666.7,2666.1,8.22873379]
[1730916901788,0.75,2666.8,2666.1,0.72729379]
[1730916901946,0.75,2666.8,2666.5,3.75016]
[1730916902654,3.8,2667.2,2666.5,0.8325]
[1730916902898,0.7551,2667.1,2666.5,0.8325]
[1730916903043,0.7551,2667.1,2666.8,3.74969]
[1730916903555,3.8,2667.2,2666.9,3.74966]
[1730916903857,3.8,2667.2,2667.0,3.74943]
[1730916904061,0.7551,2667.4,2667.1,3.74937]
[1730916904260,0.8215,2667.7,2667.3,3.7491]
[1730916906252,0.83,2667.9,2667.5,3.74874]
[1730916906457,2.03,2668.0,2667.7,3.74847]
[1730916906642,2.03,2668.0,2667.5,3.74874]
[1730916906846,2.03,2668.0,2667.9,3.74826]
[1730916907693,0.787,2668.6,2668.3,7.49521]
[1730916907838,3.74692,2668.9,2668.3,3.74759]
[1730916908044,0.374692,2668.8,2668.1,3.7479]
[1730916908273,3.74732,2668.6,2668.1,3.7479]
[1730916908457,3.74732,2668.6,2668.0,3.74809]
[1730916908639,3.74732,2668.6,2667.9,4.53057]
[1730916908640,3.74733,2668.6,2668.1,3.74797]
[1730916908872,3.74723,2668.7,2668.1,3.74797]
[1730916909047,0.4121922,2668.6,2667.9,4.53057]
[1730916909249,3.74777,2668.3,2667.7,3.74846]
[1730916909556,4.55238,2668.4,2667.8,3.74833]
[1730916910397,4.55238,2668.4,2667.7,3.74846]
[1730916910690,3.74792,2668.2,2667.6,4.52921]
[1730916910885,4.577954,2668.2,2667.6,0.7806]
[1730916911096,4.577954,2668.2,2667.7,3.7485]
[1730916911583,4.577924,2668.2,2667.7,3.7485]
[1730916911992,4.577924,2668.2,2667.6,0.7806]
[1730916911993,3.74811,2668.1,2667.6,0.7806]
[1730916912195,3.74811,2668.1,2667.1,3.7493]
[1730916912196,3.74842,2667.8,2667.1,3.7493]
[1730916912344,4.5063,2667.6,2667.1,3.7493]
[1730916912543,0.7576,2667.6,2667.2,3.74916]
[1730916912748,0.7583,2667.9,2667.5,3.74882]
[1730916912976,1.29221234,2667.9,2667.5,3.74882]
[1730916913193,5.04048234,2667.9,2667.4,3.74896]
[1730916913594,5.04048234,2667.9,2667.3,3.7491]
[1730916913767,5.04051234,2667.9,2667.3,3.7491]
[1730916914281,3.74841,2667.8,2667.1,3.74927]
[1730916914455,4.25260223,2667.7,2667.1,7.49859]
[1730916914795,0.50406223,2667.7,2667.1,3.74927]
[1730916915215,0.50406223,2667.7,2667.3,3.7491]
[1730916915352,0.7583,2667.9,2667.0,0.8309]
[1730916915687,4.56851,2668.2,2667.6,3.74856]
[1730916916067,8.31647,2668.2,2667.6,3.74856]
[1730916916274,0.831647,2668.1,2667.6,3.74856]
[1730916916998,0.8206,2668.2,2667.5,3.74871]
[1730916917304,3.74811,2668.1,2667.5,3.74871]
[1730916917610,3.74813,2668.0,2667.5,3.74871]
[1730916917756,8.31651,2668.2,2667.5,3.74871]
[1730916917960,4.56853,2668.2,2667.6,3.74867]
[1730916918174,0.456853,2668.1,2667.6,3.74867]
[1730916918766,4.56845,2668.2,2667.6,3.74867]
[1730916919074,4.56845,2668.2,2667.7,3.74847]
[1730916919267,0.8206,2668.2,2667.7,3.74847]
[1730916919466,0.8206,2668.2,2667.4,0.7533]
[1730916919467,0.8206,2668.2,2667.9,3.74826]
[1730916919677,4.53213,2668.5,2667.9,7.49646]
[1730916919908,5.740079,2668.5,2667.9,3.7482]
[1730916920106,3.74756,2668.4,2667.9,3.7482]
[1730916921607,3.74756,2668.4,2667.7,3.74843]
[1730916921840,3.74792,2668.2,2667.6,3.74866]
[1730916922007,7.49587,2668.2,2667.6,3.74866]
[1730916922340,7.49532,2668.4,2667.6,3.74861]
[1730916922507,3.74765,2668.4,2667.8,3.74829]
[1730916922712,3.74765,2668.4,2667.4,0.7533]
[1730916923044,4.53297,2667.9,2667.4,0.7533]
[1730916923251,4.48297,2667.9,2667.4,0.7533]
[1730916923543,0.7847,2667.9,2667.0,4.51933]
[1730916923740,3.74886,2667.5,2667.0,4.51933]
[1730916923944,3.74906,2667.4,2666.8,3.7498]
[1730916924109,3.74952,2667.1,2666.5,0.7699]
[1730916924307,3.74952,2667.1,2666.5,3.75023]
[1730916924546,0.8189,2667.0,2666.4,7.50056]
[1730916924698,0.8189,2667.0,2666.5,4.792926]
[1730916925345,0.8189,2667.0,2666.5,1.042716]
[1730916925498,0.8189,2667.0,2666.5,3.75011]
[1730916926152,4.56845,2667.0,2666.4,3.75023]
[1730916926535,0.8189,2667.0,2666.3,0.8166]
[1730916926965,4.56848,2667.0,2666.4,3.75028]
[1730916927128,0.8189,2667.0,2666.5,3.75013]
[1730916927474,0.8189,2667.0,2666.5,4.206803]
[1730916928076,3.74974,2666.9,2666.3,4.56702]
[1730916928435,3.74974,2666.9,2666.3,8.31745]
[1730916928639,4.56843,2667.0,2666.4,3.7503]
[1730916929268,4.56843,2667.0,2666.3,4.56702]
[1730916929269,3.74968,2666.9,2666.3,4.56702]
[1730916929475,3.74968,2666.9,2666.3,8.31744]
[1730916929777,3.74968,2666.9,2666.3,5.398764]
[1730916930072,3.74968,2666.9,2666.3,9.149194]
[1730916930293,3.74988,2666.8,2666.3,3.75042]
[1730916930574,3.74968,2666.9,2666.3,7.50086]
[1730916930792,3.74968,2666.9,2666.4,3.75027]
[1730916930929,3.74968,2666.9,2666.3,3.75042]
[1730916930930,7.49944,2666.9,2666.3,3.75042]
[1730916931130,4.581514,2666.9,2666.2,3.75064]
[1730916931378,3.74995,2666.7,2666.2,3.75064]
[1730916931730,7.50002,2666.7,2666.1,3.75069]
[1730916932178,7.50002,2666.7,2665.9,3.75098]
[1730916932179,4.52905,2666.5,2665.9,3.75098]
[1730916932342,4.52905,2666.5,2665.7,4.51772]
[1730916932545,0.7787,2665.9,2665.3,3.75182]
[1730916932748,3.75157,2665.6,2665.0,6.019948]
[1730916932940,3.75157,2665.6,2665.1,0.48691471]
[1730916933346,0.7787,2665.5,2664.7,4.53355235]
[1730916933548,3.75199,2665.3,2664.7,3.75274]
[1730916933785,4.53041,2665.5,2664.9,3.75248]
[1730916933996,0.7787,2665.5,2664.4,7.44989266]
[1730916934272,0.7787,2665.5,2664.7,3.62168265]
[1730916934430,0.7787,2665.5,2665.2,3.75206]
[1730916935048,0.7646,2666.0,2665.4,3.75166]
[1730916935244,4.51563,2666.0,2665.4,3.75166]
[1730916936453,3.75122,2665.8,2665.0,3.75225]
[1730916936682,1.59125,2666.0,2664.8,4.53727]
[1730916936683,3.75153,2665.6,2664.8,4.53727]
[1730916936905,3.75173,2665.5,2664.8,7.50503]
[1730916937058,3.75173,2665.5,2664.8,3.75249]
[1730916937387,3.75144,2665.7,2665.2,3.75204]
[1730916937590,0.7645,2665.8,2665.4,3.75178]
[1730916938195,0.7645,2665.8,2665.2,4.502406]
[1730916938358,0.7645,2665.8,2665.2,3.75197]
[1730916938719,0.7645,2665.8,2665.3,3.75189]
[1730916938927,0.7645,2665.8,2664.8,12.13]
[1730916939084,0.7645,2665.8,2664.7,0.7898]
[1730916939085,0.8289,2665.1,2664.4,4.5429]
[1730916939278,0.458103,2665.0,2664.5,3.75304]
[1730916939481,0.8289,2665.1,2664.5,3.75304]
[1730916939719,0.8289,2665.1,2664.4,4.5429]
[1730916939878,0.8289,2665.1,2664.6,3.75278]
[1730916940084,0.8289,2665.1,2664.6,3.7529]
[1730916940821,0.8289,2665.1,2664.7,3.75276]
[1730916941031,4.58111,2665.1,2664.5,3.75297]
[1730916941187,3.75264,2664.8,2664.2,3.7534]
[1730916941590,3.75234,2665.0,2664.2,3.75347]
[1730916941923,3.75234,2665.0,2664.3,3.75333]
[1730916941924,3.75258,2664.9,2664.3,3.75333]
[1730916942691,3.75265,2664.8,2664.2,3.7534]
[1730916943114,7.50538,2664.8,2664.2,3.7534]
[1730916943314,7.50535,2664.8,2664.2,3.7534]
[1730916943636,7.50486,2665.0,2664.4,3.75318]
[1730916943787,3.75256,2664.9,2664.2,8.336826]
[1730916944129,0.7771,2664.5,2663.8,3.75395]
[1730916944329,4.53023,2664.5,2663.9,3.75388]
[1730916944825,4.53023,2664.5,2663.9,3.7538]
[1730916945030,4.53023,2664.5,2663.9,3.75389]
[1730916945215,0.7771,2664.5,2664.0,3.75368]
[1730916945399,0.7771,2664.5,2664.1,3.75358]
[1730916945727,0.7771,2664.5,2664.1,3.75354]
[1730916946029,0.7771,2664.5,2664.0,3.75368]
[1730916946393,0.7771,2664.5,2664.0,3.75367]
[1730916946600,0.7771,2664.5,2664.1,3.75357]
[1730916947131,0.7771,2664.5,2664.0,4.2041154]
[1730916947291,0.7771,2664.5,2664.1,3.75359]
[1730916947693,0.7771,2664.5,2664.2,3.75345]
[1730916947887,0.7771,2664.5,2664.1,3.7536]
[1730916948508,0.7771,2664.5,2663.8,3.75403]
[1730916948509,4.56046,2664.4,2663.8,3.75403]
[1730916948894,4.56039,2664.4,2663.8,3.754]
[1730916949140,4.56039,2664.4,2663.8,3.75396]
[1730916949141,4.56042,2664.4,2663.8,3.75396]
[1730916949338,0.8072,2664.4,2663.4,3.82966013]
[1730916949625,4.56047,2664.4,2663.8,3.75392]
[1730916949807,0.8072,2664.4,2664.0,3.75368]
[1730916950643,3.75339,2664.3,2663.7,3.75414]
[1730916950933,3.75339,2664.3,2663.7,0.375414]
[1730916951134,3.75339,2664.3,2663.3,0.07508178]
[1730916951135,3.75333,2664.3,2663.3,0.07508178]
[1730916951341,0.7756,2663.8,2663.2,4.57714]
[1730916951542,4.52964,2663.8,2663.2,8.33193]
[1730916951716,0.7756,2663.8,2663.3,3.75472]
[1730916952102,0.7756,2663.8,2663.2,5.43273979]
[1730916952103,0.7756,2663.8,2663.4,3.75459]
[1730916952344,0.7756,2663.8,2663.2,9.18755979]
[1730916952504,0.7756,2663.8,2663.2,8.36515979]
[1730916952700,0.7756,2663.8,2663.0,0.8272]
[1730916952701,0.7756,2663.8,2662.8,3.0]
[1730916952918,3.75421,2663.7,2663.0,3.75502]
[1730916953343,4.52976,2663.8,2663.1,3.75492]
[1730916953506,4.52976,2663.8,2663.1,3.75489]
[1730916953705,3.75417,2663.7,2663.1,3.75489]
[1730916953908,3.75417,2663.7,2663.1,4.505881]
[1730916954131,0.7756,2663.8,2663.1,4.505881]
[1730916954132,0.7756,2663.8,2663.2,3.75486]
[1730916954356,3.75439,2663.6,2663.0,3.75509]
[1730916954521,0.7897,2663.4,2662.7,0.8272]
[1730916954721,0.7897,2663.4,2662.5,3.75577]
[1730916954722,3.75502,2663.1,2662.5,3.75577]
[1730916954924,3.75502,2663.1,2662.5,4.587607]
[1730916955224,4.545,2662.9,2662.2,3.75625]
[1730916955807,0.7897,2662.9,2662.5,3.75586]
[1730916956221,0.7897,2662.9,2662.3,3.75609]
[1730916956941,0.7897,2662.9,2662.2,3.75629]
[1730916956942,4.54502,2662.9,2662.2,3.75629]
[1730916957124,4.54502,2662.9,2662.2,4.588223]
[1730916957329,0.8269,2662.8,2662.1,3.75634]
[1730916957634,3.75566,2662.7,2661.9,3.7566]
[1730916957842,3.75572,2662.6,2661.9,3.7566]
[1730916958036,0.833828,2662.6,2661.7,3.7569]
[1730916958221,3.75623,2662.3,2661.5,3.75727]
[1730916958423,3.75622,2662.3,2661.5,3.75716]
[1730916958614,3.75622,2662.3,2661.6,3.75704]
[1730916958959,4.5204,2662.5,2661.7,3.75697]
[1730916958960,3.75601,2662.4,2661.7,3.75697]
[1730916959177,3.75615,2662.3,2661.5,7.51433]
[1730916959449,0.77,2662.4,2661.8,3.75677]
[1730916959665,0.77,2662.3,2661.7,3.75699]
[1730916959814,0.77,2662.3,2661.7,3.75691]
[1730916960211,0.77,2662.3,2661.8,3.75677]
[1730916960448,3.75538,2662.9,2662.2,3.75629]
[1730916960650,3.75538,2662.9,2662.1,3.75642]
[1730916960848,3.75546,2662.8,2662.1,3.75638]
[1730916961055,3.75546,2662.8,2662.0,3.75647]
[1730916961274,7.51099,2662.8,2662.0,3.75647]
[1730916961415,4.506559,2662.8,2662.0,3.75647]
[1730916961611,3.7556,2662.7,2662.0,3.75647]
[1730916962045,3.7556,2662.7,2661.8,3.75677]
[1730916962320,3.75597,2662.5,2661.8,3.75684]
[1730916962549,0.01,2662.9,2661.6,4.58663]
[1730916962766,3.75588,2662.5,2661.6,3.75703]
[1730916962923,3.75615,2662.3,2661.6,3.75703]
[1730916963323,3.75673,2661.9,2661.2,15.88761]
[1730916963530,0.3093,2661.7,2661.2,3.75761]
[1730916963773,0.3093,2661.7,2661.2,3.75759]
[1730916963929,0.3093,2661.7,2661.3,3.75746]
[1730916964325,0.3093,2661.7,2661.4,3.75739]
[1730916964555,0.3093,2661.7,2661.4,7.51473]
[1730916964872,0.3093,2662.0,2661.5,3.75716]
[1730916965110,0.3093,2662.0,2661.6,3.75705]
[1730916965602,0.3093,2662.5,2661.4,0.751473]
[1730916965895,4.06517,2662.5,2661.9,3.7567]
[1730916966102,4.851663,2662.5,2661.9,3.75663]
[1730916966254,4.851663,2662.5,2661.9,7.51326]
[1730916966454,4.851663,2662.5,2661.9,3.75663]
[1730916966902,4.851663,2662.5,2661.9,7.51326]
[1730916967053,0.3093,2662.5,2662.1,3.75635]
[1730916967258,4.73808901,2662.9,2662.1,3.75635]
[1730916967497,0.3093,2662.8,2662.3,3.75611]
[1730916967797,0.3093,2662.8,2662.4,3.75599]
[1730916967985,0.3093,2662.8,2662.3,3.75611]
[1730916968195,0.3093,2662.8,2662.3,7.51218]
[1730916968352,0.3093,2662.8,2662.3,4.131681]
[1730916969665,0.3093,2662.8,2662.1,3.75632]
[1730916969666,3.75558,2662.7,2662.1,3.75632]
[1730916970006,0.3093,2662.5,2661.9,3.75658]
[1730916970497,3.75582,2662.6,2661.9,3.75658]
[1730916970667,3.75551,2662.8,2662.1,3.75641]
[1730916970870,3.75551,2662.8,2662.1,7.51274]
[1730916971106,7.51109,2662.8,2662.1,3.75633]
[1730916971255,3.75559,2662.7,2662.1,3.75633]
[1730916971461,3.75573,2662.6,2662.0,0.375658]
[1730916971661,3.75573,2662.6,2662.0,4.132158]
[1730916971888,3.75559,2662.7,2662.1,3.75642]
[1730916972497,3.75559,2662.7,2662.0,0.375658]
[1730916972910,3.75559,2662.7,2662.1,3.75641]
[1730916973565,3.75539,2662.9,2662.4,3.756]
[1730916973797,3.75516,2663.0,2662.4,3.756]
[1730916974110,3.7553,2662.9,2662.4,3.756]
[1730916974601,3.7553,2662.9,2662.2,4.52532]
[1730916974804,3.7553,2662.9,2662.2,5.05673888]
[1730916974966,3.75516,2663.0,2662.2,5.05669888]
[1730916975505,2.03,2663.1,2662.4,3.756]
[1730916975703,3.8,2663.5,2662.7,0.8131]
[1730916976016,3.75404,2663.8,2662.8,4.212252]
[1730916976193,5.78401,2663.9,2663.2,7.50949]
[1730916976364,5.78401,2663.9,2663.2,3.75474]
[1730916976564,5.78401,2663.9,2663.2,3.75483]
[1730916976764,2.03,2663.9,2663.4,3.75458]
[1730916976964,2.03,2663.9,2663.2,4.505768]
[1730916976965,5.7839,2663.9,2663.2,8.260508]
[1730916977197,5.7839,2663.9,2663.3,3.7547]
[1730916977903,9.53787,2663.9,2663.3,3.75473]
[1730916978113,9.53787,2663.9,2663.3,4.5807758]
[1730916978315,5.7839,2663.9,2663.3,4.5807758]
[1730916978613,2.03,2663.9,2663.4,3.75458]
[1730916978978,2.03,2663.9,2663.4,7.50916]
[1730916979303,2.03,2663.9,2663.4,4.58810058]
[1730916979503,2.03,2663.9,2663.5,3.75445]
[1730916979916,2.03,2663.9,2663.7,3.75408]
[1730916980159,4.22709013,2665.1,2663.7,3.75407]
[1730916980160,0.01,2664.9,2663.7,3.75407]
[1730916980303,0.01,2664.9,2663.7,4.13698548]
[1730916980304,3.75342,2664.3,2663.7,4.13698548]
[1730916980508,3.75347,2664.2,2663.7,4.13698548]
[1730916980715,3.75347,2664.2,2663.6,3.75428]
[1730916980958,3.75361,2664.1,2663.4,0.77194858]
[1730916981117,3.75386,2664.0,2663.3,8.28123858]
[1730916981836,3.75344,2664.3,2663.3,0.77194858]
[1730916982013,7.50684,2664.3,2663.7,3.75417]
[1730916982214,3.7534,2664.3,2663.7,3.75417]
[1730916982532,3.75315,2664.5,2663.7,3.75409]
[1730916982737,3.75348,2664.2,2663.7,3.75409]
[1730916982920,3.75348,2664.2,2663.6,3.7543]
[1730916983612,0.878315,2664.5,2663.3,3.75463]
[1730916983613,3.878315,2664.5,2663.3,3.75463]
[1730916983821,3.75386,2664.0,2663.3,7.50929]
[1730916984020,3.75386,2664.0,2663.4,3.75458]
[1730916984253,0.55,2664.4,2663.8,3.75393]
[1730916984254,3.75325,2664.4,2663.8,3.75393]
[1730916984569,3.75325,2664.4,2663.9,3.75388]
[1730916985438,0.878315,2664.5,2663.9,3.75388]
[1730916985621,0.878315,2664.5,2663.8,4.53283]
[1730916985622,3.75327,2664.4,2663.8,4.53283]
[1730916986522,4.631445,2664.5,2663.8,4.53283]
[1730916986764,8.384595,2664.5,2663.8,4.53283]
[1730916987331,8.384595,2664.5,2663.8,8.28679]
[1730916987533,8.384595,2664.5,2663.8,4.53283]
[1730916987871,3.7532,2664.4,2663.8,4.53283]
[1730916988162,3.7532,2664.4,2663.8,8.28679]
[1730916988339,0.878315,2664.5,2663.9,3.75387]
[1730916988542,5.78276,2664.7,2664.0,3.75368]
[1730916988764,2.03,2664.7,2664.1,3.75361]
[1730916989467,5.78277,2664.7,2664.1,3.75361]
[1730916989765,3.75293,2664.6,2664.0,3.75368]
[1730916990083,3.75328,2664.4,2663.7,3.75417]
[1730916990282,3.75328,2664.4,2663.8,3.7539]
[1730916990431,3.75328,2664.4,2663.9,3.75389]
[1730916990953,8.4595,2664.6,2663.9,3.75389]
[1730916991125,3.75305,2664.5,2664.0,3.75375]
[1730916991348,5.78283,2664.7,2664.1,3.7536]
[1730916991550,5.78283,2664.7,2664.0,3.75375]
[1730916991551,3.75293,2664.6,2664.0,3.75367]
[1730916991753,3.75293,2664.6,2664.1,3.75357]
[1730916992855,3.75293,2664.6,2664.0,3.75365]
[1730916993161,5.78277,2664.7,2664.1,3.7536]
[1730916993358,3.063546,2664.7,2663.8,3.75394]
[1730916993564,3.063546,2664.7,2663.6,0.7947]
[1730916993565,3.62662294,2664.7,2663.6,0.7947]
[1730916993875,3.75347,2664.2,2663.6,3.75419]
[1730916994253,3.75347,2664.2,2663.7,3.75414]
[1730916994475,7.50706,2664.2,2663.5,3.75445]
[1730916994676,3.75347,2664.2,2663.6,3.75426]
[1730916994903,3.75327,2664.4,2663.7,3.75416]
[1730916995194,0.375327,2664.3,2663.8,3.75402]
[1730916995364,4.128717,2664.3,2663.8,3.75402]
[1730916995761,4.128717,2664.3,2663.6,3.75431]
[1730916995962,4.128717,2664.3,2663.8,3.75402]
[1730916996167,3.75354,2664.2,2663.6,3.75431]
[1730916996468,3.75329,2664.4,2663.9,3.75386]
[1730916996664,3.75329,2664.4,2663.8,3.75392]
[1730916997999,3.75333,2664.3,2663.6,7.50842]
[1730916998208,3.75348,2664.2,2663.6,3.75421]
[1730916998906,3.75348,2664.2,2663.6,7.50846]
[1730916999313,3.75348,2664.2,2663.6,3.75421]
[1730916999471,3.75348,2664.2,2663.6,7.50846]
[1730916999872,7.50703,2664.2,2663.6,3.75421]
[1730917000108,7.50706,2664.2,2663.6,3.75421]
[1730917000267,8.257763,2664.2,2663.6,3.75421]
[1730917000471,4.504183,2664.2,2663.6,3.75421]
[1730917000672,4.504183,2664.2,2663.5,3.75445]
[1730917000910,4.504183,2664.2,2663.6,3.75424]
[1730917001209,4.504183,2664.2,2663.4,1.72908586]
[1730917001210,4.2040383,2664.1,2663.4,4.58039]
[1730917001819,3.75461,2663.4,2662.8,0.8065]
[1730917001972,3.75477,2663.3,2662.7,3.75557]
[1730917002176,3.75477,2663.3,2662.8,2.11]
[1730917002388,3.75515,2663.1,2662.8,2.11]
[1730917002695,3.75527,2663.0,2662.3,4.56043]
[1730917002902,3.75533,2662.9,2662.3,4.56043]
[1730917003105,3.75533,2662.9,2662.3,8.31648]
[1730917003300,3.75524,2663.0,2662.3,4.56043]
[1730917003514,3.75524,2663.0,2662.4,3.75592]
[1730917003918,3.75524,2663.0,2662.5,3.75585]